bitfinex-derivatives/quotes_ETHF0:USTF0_20250308
["timestamp","ask_amount","ask_price","bid_price","bid_amount"]
[1741475188823,3.2078,2206.5,2206.1,3.2078]
[1741475188824,1.2141,2206.5,2206.1,3.2078]
[1741475189027,1.2141,2206.5,2205.3,5.6174]
[1741475189028,3.8002,2206.4,2205.8,5.2468]
[1741475189528,0.5924,2206.4,2205.8,5.2468]
[1741475189728,0.00680411,2206.3,2205.9,0.00680411]
[1741475191032,0.00680411,2206.3,2205.9,0.55088411]
[1741475192030,0.00680411,2206.3,2205.9,0.00680411]
[1741475192334,0.00680411,2206.3,2205.9,0.55088411]
[1741475192628,0.00680411,2206.3,2206.1,3.75183]
[1741475192836,0.00680411,2206.3,2206.2,0.6497]
[1741475193036,0.00680411,2206.3,2206.2,1.3009]
[1741475193934,0.6175,2206.5,2206.2,1.3009]
[1741475195731,0.6175,2206.5,2206.2,1.8449]
[1741475195932,0.00679354,2206.6,2206.2,1.3009]
[1741475196133,0.00679354,2206.6,2206.4,3.2078]
[1741475196926,5.24659354,2206.6,2205.9,0.00680411]
[1741475197730,0.6483,2206.9,2206.5,3.75174]
[1741475197938,5.2438,2207.3,2206.5,3.2078]
[1741475198438,3.2078,2207.0,2206.5,3.2078]
[1741475198738,3.2078,2207.0,2206.2,3.8228]
[1741475201038,1.2721,2206.9,2206.2,3.8228]
[1741475201232,1.2721,2206.9,2206.2,4.3668]
[1741475201434,1.2721,2206.9,2206.2,3.8228]
[1741475201632,1.2721,2206.9,2206.2,4.3668]
[1741475202041,1.2721,2206.9,2206.3,0.54399]
[1741475202341,1.2721,2206.9,2206.3,0.5924]
[1741475203039,0.6513,2206.8,2206.3,0.40944334]
[1741475203231,0.6513,2206.8,2206.2,3.8228]
[1741475204938,3.2078,2206.7,2206.2,3.8228]
[1741475206931,0.6513,2206.8,2206.2,3.8228]
[1741475208333,0.6513,2206.8,2206.3,0.6308]
[1741475208542,0.6513,2206.8,2206.2,3.8228]
[1741475210530,0.09061254,2207.2,2206.6,3.2078]
[1741475210738,0.09061254,2207.2,2206.7,1.8404]
[1741475212246,0.09061254,2207.2,2206.9,3.2078]
[1741475212637,0.09061254,2207.2,2206.7,1.8404]
[1741475213141,0.09061254,2207.2,2206.9,3.2078]
[1741475213734,0.09061254,2207.2,2206.9,3.75163]
[1741475213940,0.09061254,2207.2,2206.9,3.2078]
[1741475215642,0.09061254,2207.2,2206.9,3.75164]
[1741475215948,0.09061254,2207.2,2206.9,3.2078]
[1741475216241,0.09061254,2207.2,2206.9,3.75164]
[1741475216645,0.09061254,2207.2,2206.7,1.8404]
[1741475221046,0.09061254,2207.2,2207.0,3.2078]
[1741475221251,0.09061254,2207.2,2206.7,4.4512]
[1741475223044,0.09061254,2207.2,2206.8,0.54386]
[1741475223349,0.09061254,2207.2,2206.7,4.99507]
[1741475223947,0.09061254,2207.2,2206.8,0.54385]
[1741475224151,0.09061254,2207.2,2207.0,3.2078]
[1741475224345,0.09061254,2207.2,2207.1,0.5974]
[1741475227353,0.09061254,2207.2,2206.7,1.78728]
[1741475227558,0.09061254,2207.2,2206.8,0.5899]
[1741475229352,0.09061254,2207.2,2206.9,3.2078]
[1741475229547,3.2078,2207.7,2206.9,3.2078]
[1741475229752,5.2628,2207.7,2207.2,3.2078]
[1741475230055,5.2628,2207.7,2207.3,1.2282]
[1741475230449,1.1941,2207.9,2207.3,1.2282]
[1741475230649,2.055,2207.8,2207.3,1.2282]
[1741475231557,2.054,2207.8,2207.3,1.2282]
[1741475232755,6.1888,2208.0,2207.4,0.624]
[1741475232946,2.052,2207.9,2207.4,0.624]
[1741475235752,3.2078,2208.0,2207.5,3.2078]
[1741475235960,2.048,2207.9,2207.5,3.2078]
[1741475236151,5.2548,2208.0,2207.5,3.2078]
[1741475236352,19.7536,2208.2,2207.5,3.2078]
[1741475236557,2.047,2208.1,2207.5,3.2078]
[1741475237152,19.7536,2208.2,2207.5,3.2078]
[1741475237348,21.8016,2208.2,2207.5,3.2078]
[1741475238755,18.51,2208.2,2207.5,3.75149]
[1741475238955,3.2078,2208.3,2207.8,3.2078]
[1741475239161,3.2078,2208.3,2207.9,1.8794]
[1741475240656,3.2078,2208.3,2207.9,1.2396]
[1741475241562,3.2078,2208.3,2207.9,1.8378]
[1741475244163,3.2078,2208.3,2207.9,1.2396]
[1741475244358,3.2078,2208.3,2207.9,0.609]
[1741475244558,1.8803,2208.2,2207.9,0.609]
[1741475246063,3.2078,2208.3,2207.9,1.2433]
[1741475247470,3.2078,2208.3,2207.9,1.8937]
[1741475251074,3.2078,2208.3,2207.9,1.2433]
[1741475251267,3.2078,2208.3,2207.9,0.609]
[1741475252075,3.2078,2208.3,2207.8,3.2078]
[1741475253278,3.2078,2208.3,2207.5,0.4142811]
[1741475253579,3.2078,2208.3,2207.4,4.4427]
[1741475255370,3.2078,2208.3,2207.4,4.84105033]
[1741475257078,3.2078,2208.0,2207.4,4.84105033]
[1741475257378,1.2183,2207.9,2207.4,4.84105033]
[1741475258779,1.8273,2207.9,2207.4,4.84105033]
[1741475259570,1.8273,2207.9,2207.4,4.23925033]
[1741475261677,1.8273,2207.9,2207.4,3.8409]
[1741475261873,3.2078,2207.7,2207.1,0.00680411]
[1741475262072,2.019,2207.6,2207.1,0.00680411]
[1741475262677,0.5987,2207.5,2207.1,0.00680411]
[1741475262868,1.2426,2207.4,2207.1,0.00680411]
[1741475270883,0.09058791,2207.8,2207.1,0.00680411]
[1741475271079,3.2078,2207.5,2207.1,0.00680411]
[1741475271279,3.897,2207.7,2207.1,0.00680411]
[1741475279091,3.2078,2207.6,2207.1,0.00680411]
[1741475282990,0.09060022,2207.5,2207.1,0.00680411]
[1741475283605,0.09060022,2207.5,2207.1,0.00263437]
[1741475284907,3.2078,2207.2,2207.1,1e-08]
[1741475285202,5.2028,2207.2,2206.9,3.2078]
[1741475285405,1.8764,2207.1,2206.9,3.2078]
[1741475290302,1.8764,2207.1,2206.8,0.00680411]
[1741475294601,2.6038,2207.1,2206.8,0.00680411]
[1741475294809,1.987,2207.1,2206.8,0.64640411]
[1741475295006,1.987,2207.1,2206.8,1.26270411]
[1741475298616,1.987,2207.1,2206.8,0.00680411]
[1741475298803,1.2234,2207.0,2206.8,0.00680411]
[1741475299005,1.8238,2207.0,2206.8,0.00680411]
[1741475299414,1.8238,2207.0,2206.8,0.00263445]
[1741475306118,1.8238,2207.0,2206.8,0.00122195]
[1741475306522,3.2078,2206.9,2206.6,3.2078]
[1741475307120,3.2078,2206.9,2206.2,3.2078]
[1741475307319,6.1928,2206.9,2206.2,3.2078]
[1741475307716,6.1928,2206.9,2206.3,0.00680411]
[1741475310626,6.1928,2206.9,2206.3,1.24020411]
[1741475311520,2.985,2206.8,2206.3,1.24020411]
[1741475311825,1.974,2206.7,2206.3,1.24020411]
[1741475312025,1.974,2206.7,2206.4,0.6306]
[1741475312721,4.957,2206.8,2206.4,0.6306]
[1741475316321,2.985,2206.8,2206.4,0.6306]
[1741475316924,1.97,2207.0,2206.5,0.54393]
[1741475317124,1.97,2207.0,2206.5,3.75173]
[1741475317321,1.97,2207.0,2206.5,3.2078]
[1741475317818,1.97,2207.1,2206.5,3.75173]
[1741475318222,1.97,2207.1,2206.5,3.2078]
[1741475318425,3.2078,2207.2,2206.5,3.2078]
[1741475319030,3.2078,2207.2,2206.5,3.75174]
[1741475319323,3.2078,2207.2,2206.5,3.2078]
[1741475319926,3.2078,2207.2,2206.5,3.75174]
[1741475320130,4.28000009,2207.3,2206.5,3.75174]
[1741475320324,3.8134,2207.3,2206.5,3.75174]
[1741475321532,3.2078,2207.2,2206.5,3.75174]
[1741475321832,3.2078,2207.2,2206.5,3.2078]
[1741475322432,3.2078,2207.2,2206.5,3.75173]
[1741475324229,2.06876996,2207.5,2206.9,0.54383]
[1741475324429,3.30256996,2207.5,2207.0,1.8627]
[1741475325330,0.09476996,2207.5,2207.0,1.8627]
[1741475325630,0.09476996,2207.5,2207.0,2.40651]
[1741475325830,0.09476996,2207.5,2207.1,3.2078]
[1741475326735,1.2602,2207.4,2207.1,3.2078]
[1741475326935,1.909,2207.4,2207.1,3.2078]
[1741475327637,1.909,2207.4,2207.1,3.60177182]
[1741475328435,1.909,2207.4,2207.1,0.39397182]
[1741475328638,1.909,2207.4,2207.1,3.2078]
[1741475329037,1.909,2207.4,2207.0,1.8627]
[1741475329530,0.09476996,2207.5,2207.1,3.2078]
[1741475329731,0.09476996,2207.5,2207.1,3.60193055]
[1741475331239,0.09476996,2207.5,2207.1,4.14572055]
[1741475331836,0.09476996,2207.5,2207.1,3.60193055]
[1741475332235,0.09476996,2207.5,2207.1,4.14570055]
[1741475332938,0.09476996,2207.5,2207.1,3.60193055]
[1741475333740,0.09476996,2207.5,2207.1,4.14571055]
[1741475334631,3.2078,2208.0,2207.1,3.60193055]
[1741475334831,21.0737,2207.9,2207.4,3.2078]
[1741475335040,21.0737,2207.9,2207.5,1.8504]
[1741475335745,21.08050411,2207.9,2207.5,1.85720411]
[1741475336543,21.71690411,2207.9,2207.5,1.85720411]
[1741475336741,22.31240411,2207.9,2207.5,1.85720411]
[1741475336941,22.31240411,2207.9,2207.5,1.24960411]
[1741475337139,3.80540411,2207.9,2207.5,1.24960411]
[1741475337940,3.80540411,2207.9,2207.5,0.00680411]
[1741475340844,3.2078,2207.6,2207.5,0.00680411]
[1741475341239,3.2078,2207.6,2207.5,0.00263572]
[1741475342435,3.2078,2207.6,2207.0,3.60901958]
[1741475342436,3.2078,2207.6,2207.0,3.2078]
[1741475342638,3.8591,2207.5,2207.0,3.2078]
[1741475343645,3.8591,2207.5,2207.0,3.21460411]
[1741475344342,4.01181243,2207.5,2207.0,3.21460411]
[1741475345343,7.21961243,2207.5,2207.0,0.00680411]
[1741475349445,0.15271243,2207.4,2207.0,0.00680411]
[1741475349644,3.2078,2207.2,2207.0,0.00680411]
[1741475349839,3.8059,2207.1,2207.0,0.00680411]
[1741475350044,3.8059,2207.1,2206.6,3.2078]
[1741475350446,3.8059,2207.1,2206.7,1.2282]
[1741475351246,3.8059,2207.1,2206.7,1.23500411]
[1741475355654,1.2216,2207.1,2206.7,1.23500411]
[1741475355853,0.5931,2207.1,2206.7,1.23500411]
[1741475356054,2.12671243,2207.2,2206.7,1.23500411]
[1741475356256,2.12671243,2207.2,2206.8,0.54387]
[1741475356554,2.12671243,2207.2,2206.9,0.6324]
[1741475356956,0.15271243,2207.2,2206.9,0.6324]
[1741475357148,0.15271243,2207.2,2206.9,4.38404]
[1741475357349,0.15271243,2207.2,2206.9,3.8402]
[1741475357652,0.15271243,2207.2,2207.0,0.5438]
[1741475357853,0.15271243,2207.2,2207.1,0.6312]
[1741475358053,0.15271243,2207.2,2207.1,1.2358]
[1741475358554,1.2061,2207.6,2207.1,5.2358]
[1741475358752,1.2061,2207.6,2207.1,1.77959]
[1741475359254,1.2061,2207.6,2207.3,3.2078]
[1741475359454,0.15271243,2208.3,2207.3,3.2078]
[1741475359653,1.976,2207.8,2207.4,0.6065]
[1741475359846,1.976,2207.8,2207.5,0.625]
[1741475360046,1.976,2207.8,2207.5,1.2234]
[1741475362149,0.00680411,2207.9,2207.6,3.2078]
[1741475366669,3.2078,2208.2,2207.6,3.2078]
[1741475366863,1.973,2208.4,2207.9,3.75138]
[1741475367062,1.8315,2208.5,2208.0,1.8394]
[1741475367268,3.8045,2208.5,2208.0,2.38297]
[1741475367467,3.8045,2208.5,2208.0,1.8394]
[1741475367868,3.81130411,2208.5,2208.0,1.84620411]
[1741475368868,3.81130411,2208.5,2208.0,2.23376327]
[1741475372671,3.80730411,2208.5,2208.0,2.23376327]
[1741475372878,1.83830411,2208.5,2208.0,2.23376327]
[1741475374069,1.83830411,2208.5,2208.1,0.54354]
[1741475374372,1.83830411,2208.5,2208.0,2.23376327]
[1741475375371,1.83830411,2208.5,2208.0,1.60126327]
[1741475378279,1.83830411,2208.5,2208.0,2.14482327]
[1741475380578,1.83830411,2208.5,2208.0,1.60126327]
[1741475381181,1.83830411,2208.5,2208.0,2.14483327]
[1741475381379,1.83830411,2208.5,2208.0,1.60126327]
[1741475381970,1.83830411,2208.5,2208.0,2.14482327]
[1741475382176,1.83830411,2208.5,2208.0,1.60126327]
[1741475385684,1.83830411,2208.5,2208.0,2.14481327]
[1741475385885,1.83830411,2208.5,2208.0,1.60126327]
[1741475386084,1.83830411,2208.5,2208.0,2.14483327]
[1741475387389,1.83830411,2208.5,2208.0,1.60126327]
[1741475387687,1.83830411,2208.5,2208.0,2.14483327]
[1741475388393,1.83830411,2208.5,2208.0,1.60126327]
[1741475391987,1.83830411,2208.5,2208.0,2.14483327]
[1741475392189,1.83830411,2208.5,2208.0,1.60126327]
[1741475400293,1.83830411,2208.5,2208.0,0.39436327]
[1741475400693,1.83830411,2208.5,2207.9,4.4268]
[1741475401593,1.83830411,2208.5,2207.9,5.35790064]
[1741475401785,1.83830411,2208.5,2208.0,0.00680411]
[1741475405502,1.83830411,2208.5,2208.0,0.55036411]
[1741475405703,1.83830411,2208.5,2208.0,0.00680411]
[1741475406899,1.83830411,2208.5,2208.0,0.55037411]
[1741475407101,1.83830411,2208.5,2208.0,0.00680411]
[1741475411906,3.80730411,2208.5,2208.0,0.00680411]
[1741475425715,3.80730411,2208.5,2208.0,0.55037411]
[1741475426008,1.83830411,2208.5,2208.0,0.55037411]
[1741475426816,1.83830411,2208.5,2208.0,0.00680411]
[1741475428108,3.2078,2208.4,2208.0,0.00680411]
[1741475429017,3.2078,2208.4,2208.0,0.00261539]
[1741475430611,1.83830411,2208.5,2208.0,0.00261539]
[1741475430813,3.2078,2208.4,2208.0,0.00261539]
[1741475435920,3.2078,2208.4,2208.0,0.00121399]
[1741475436320,0.15271243,2208.3,2208.0,0.00121399]
[1741475436818,0.6008,2208.2,2208.0,0.00121399]
[1741475437024,1.2665,2208.1,2208.0,0.00121399]
[1741475437516,4.4743,2208.1,2207.7,3.2078]
[1741475438721,4.4743,2208.1,2207.7,3.21460411]
[1741475439311,4.62701243,2208.1,2207.7,3.21460411]
[1741475439914,3.2078,2207.8,2206.8,3.2078]
[1741475440115,3.2078,2207.2,2206.8,3.2078]
[1741475440416,1.834,2207.1,2206.8,3.2078]
[1741475440618,1.834,2207.1,2206.9,0.5944]
[1741475441118,1.834,2207.1,2206.9,0.98642582]
[1741475445119,1.834,2207.1,2206.9,0.39202582]
[1741475445314,1.834,2207.1,2206.8,3.21460411]
[1741475445918,1.834,2207.1,2206.8,3.60266896]
[1741475447611,1.98671243,2207.1,2206.8,3.60266896]
[1741475448214,3.2078,2206.9,2206.8,0.00680411]
[1741475448611,3.2078,2206.9,2206.2,0.6272]
[1741475448814,0.6047,2206.8,2206.2,1.00584114]
[1741475449014,3.2078,2206.6,2206.2,0.37864114]
[1741475449219,5.1768,2206.6,2206.1,3.2078]
[1741475449419,0.6047,2206.5,2206.1,3.2078]
[1741475449925,0.6047,2206.5,2206.1,3.20970171]
[1741475450619,0.6047,2206.5,2206.1,3.59503561]
[1741475450926,0.6047,2206.8,2206.4,3.2078]
[1741475451225,0.6047,2206.8,2206.5,1.2534]
[1741475452120,0.6047,2206.8,2206.4,3.2078]
[1741475452441,1.2045,2206.7,2206.4,3.2078]
[1741475453628,4.4123,2206.7,2206.4,3.2078]
[1741475453826,4.4123,2206.7,2206.2,1.2534]
[1741475457229,1.2045,2206.7,2206.2,1.2534]
[1741475459730,1.97,2206.6,2206.2,1.2534]
[1741475460132,0.623,2206.5,2206.2,1.2534]
[1741475461026,1.97,2206.6,2206.2,1.2534]
[1741475461228,2.6108,2206.6,2206.2,1.2534]
[1741475461628,0.15271243,2206.7,2206.2,1.2534]
[1741475461830,2.12271243,2206.7,2206.2,1.2534]
[1741475462029,2.12271243,2206.7,2206.3,0.54399]
[1741475462228,2.12271243,2206.7,2206.2,1.79739]
[1741475462833,2.12271243,2206.7,2206.2,1.2534]
[1741475463029,2.12271243,2206.7,2206.3,0.54399]
[1741475463232,2.6108,2207.0,2206.5,3.75173]
[1741475463431,1.97,2207.0,2206.6,1.2115]
[1741475463626,1.97,2207.0,2206.6,1.8473]
[1741475464431,1.97680411,2207.2,2206.6,1.8473]
[1741475464635,1.97680411,2207.2,2206.8,3.2078]
[1741475465032,1.97680411,2207.2,2206.9,0.6358]
[1741475465642,1.97680411,2207.2,2207.0,0.6436]
[1741475465830,1.97680411,2207.2,2207.1,0.5933]
[1741475466936,0.00680411,2207.2,2207.1,0.5933]
[1741475468730,0.00680411,2207.2,2206.9,0.6358]
[1741475468930,1.24870411,2207.2,2206.9,0.6358]
[1741475469637,0.5956,2207.1,2206.9,0.6358]
[1741475471132,1.24870411,2207.2,2206.9,0.6358]
[1741475471436,1.24870411,2207.2,2207.0,0.6054]
[1741475471839,0.00680411,2207.2,2207.0,0.6054]
[1741475475536,0.00680411,2207.2,2207.0,1.14921]
[1741475475845,0.00680411,2207.2,2207.0,0.6054]
[1741475476044,0.00680411,2207.2,2207.0,1.14922]
[1741475476842,0.00680411,2207.2,2207.1,3.2078]
[1741475478248,0.00680411,2207.2,2207.1,3.75159]
[1741475479444,2.981,2207.9,2207.1,3.2078]
[1741475479746,1.97,2207.8,2207.6,3.2078]
[1741475480840,1.97,2207.8,2207.6,3.59133854]
[1741475481040,1.97,2207.8,2207.6,4.21013854]
[1741475481645,0.00680411,2207.9,2207.6,4.21013854]
[1741475483743,0.00680411,2207.9,2207.6,3.8266]
[1741475484042,0.00680411,2207.9,2207.6,4.21188691]
[1741475485048,0.00680411,2207.9,2207.6,3.8266]
[1741475485850,0.00680411,2207.9,2207.6,3.2078]
[1741475486252,3.2078,2207.8,2207.5,0.00680411]
[1741475487951,0.6107,2207.7,2207.5,0.00680411]
[1741475488252,1.2542,2207.6,2207.5,0.00680411]
[1741475488454,3.2232,2207.6,2207.5,0.00680411]
[1741475490048,3.2232,2207.6,2207.1,0.6308]
[1741475490347,3.2232,2207.6,2207.0,3.8404]
[1741475490348,3.7762,2207.6,2207.0,3.8404]
[1741475491152,3.7762,2207.6,2207.1,0.00190171]
[1741475492052,3.7762,2207.6,2207.1,0.38719517]
[1741475492250,3.7762,2207.6,2207.1,0.00190171]
[1741475492653,0.553,2207.5,2207.1,0.00190171]
[1741475493752,0.64360022,2207.5,2207.1,0.00088238]
[1741475495351,3.85140022,2207.5,2207.1,0.00088238]
[1741475495653,0.553,2207.4,2207.1,0.00088238]
[1741475496156,0.6203,2207.3,2207.1,0.00088238]
[1741475496453,3.2067,2207.2,2207.1,0.00088238]
[1741475497060,3.2067,2207.2,2207.1,0.64028238]
[1741475497656,1.2377,2207.2,2207.1,0.64028238]
[1741475498653,1.2377,2207.2,2207.1,0.00088238]
[1741475500055,1.2377,2207.2,2207.1,8.238e-05]
[1741475505958,4.4455,2207.2,2207.1,8.238e-05]
[1741475506554,4.4455,2207.2,2206.7,1.2646]
[1741475507852,4.4455,2207.2,2206.7,1.63543682]
[1741475510556,4.9985,2207.2,2206.7,1.63543682]
[1741475511061,4.4091,2207.2,2206.7,1.63543682]
[1741475511366,0.553,2207.2,2206.7,1.63543682]
[1741475513359,2.522,2207.2,2206.7,1.63543682]
[1741475516563,1.969,2207.2,2206.7,1.63543682]
[1741475517561,0.553,2207.4,2206.7,1.63543682]
[1741475517769,1.969,2207.2,2206.7,1.63543682]
[1741475519573,2.522,2207.4,2206.9,3.2078]
[1741475519764,2.522,2207.4,2207.0,1.2243]
[1741475519958,2.522,2207.4,2207.1,0.6327]
[1741475521172,0.09060022,2207.5,2207.2,3.2078]
[1741475521664,0.09060022,2207.5,2207.3,0.6219]
[1741475521871,0.09060022,2207.5,2207.4,0.6489]
[1741475522772,0.09060022,2207.5,2207.3,0.48855347]
[1741475526168,0.09060022,2207.5,2207.2,3.2078]
[1741475526373,1.90250022,2207.5,2207.1,0.6327]
[1741475528579,3.2078,2207.3,2206.8,3.8283]
[1741475528780,1.2308,2207.2,2206.9,1.2462]
[1741475529374,0.5971,2207.2,2206.9,1.2462]
[1741475530481,1.2596,2207.1,2206.8,3.2078]
[1741475530676,1.2596,2207.1,2206.8,4.4035]
[1741475532680,1.2596,2207.1,2206.8,4.9994]
[1741475533481,2.5661,2207.2,2206.8,4.9994]
[1741475537983,0.09060022,2207.5,2207.1,3.2078]
[1741475538180,2.05960022,2207.5,2207.2,1.8388]
[1741475538785,0.09060022,2207.5,2207.2,1.8388]
[1741475544495,0.09060022,2207.5,2207.3,0.54374]
[1741475544799,0.09060022,2207.5,2207.2,2.38255]
[1741475544998,0.09060022,2207.5,2207.4,3.2078]
[1741475551514,0.09060022,2207.5,2207.4,3.75152]
[1741475556220,0.09060022,2207.5,2207.4,3.2078]
[1741475557026,0.09060022,2207.5,2207.2,1.8388]
[1741475557325,0.6019,2207.4,2207.2,1.8388]
[1741475558820,0.6019,2207.4,2207.1,3.2078]
[1741475559121,0.6015,2207.3,2207.1,3.2078]
[1741475559315,1.2252,2207.3,2206.8,1.2403]
[1741475559815,3.1932,2207.3,2206.8,1.2403]
[1741475561626,6.401,2207.3,2206.8,1.2403]
[1741475563318,3.1932,2207.3,2206.8,1.2403]
[1741475565622,6.401,2207.3,2206.8,1.2403]
[1741475569633,6.401,2207.3,2206.8,0.6303]
[1741475569929,6.401,2207.3,2206.7,3.57863682]
[1741475571932,3.1932,2207.3,2206.7,3.57863682]
[1741475572624,3.1932,2207.3,2206.7,4.12251682]
[1741475573322,3.1932,2207.3,2206.7,3.57863682]
[1741475574030,3.1932,2207.3,2206.7,4.12252682]
[1741475574529,0.6019,2207.4,2207.1,0.54379]
[1741475574735,2.05860022,2207.5,2207.2,1.2436]
[1741475577528,0.09060022,2207.5,2207.3,3.2078]
[1741475579328,0.72220022,2207.5,2207.3,3.2078]
[1741475579527,0.72220022,2207.5,2207.3,3.8586]
[1741475580926,0.72220022,2207.5,2207.3,3.2078]
[1741475581425,0.72220022,2207.5,2207.3,3.8586]
[1741475583538,0.09060022,2207.5,2207.3,3.8586]
[1741475583737,0.09060022,2207.5,2207.3,4.4482]
[1741475591830,0.09060022,2207.5,2207.4,0.54372]
[1741475593938,0.09060022,2207.5,2207.3,4.99193]
[1741475594236,0.09060022,2207.5,2207.3,4.4482]
[1741475594633,0.09060022,2207.5,2207.4,0.54372]
[1741475601133,2.56700411,2207.9,2207.3,4.99193]
[1741475601339,2.56700411,2207.9,2207.6,3.2078]
[1741475602147,2.56700411,2207.9,2207.3,4.4482]
[1741475602843,2.56700411,2207.9,2207.3,4.99193]
[1741475603348,2.56700411,2207.9,2207.4,0.54371]
[1741475603645,0.00680411,2207.9,2207.7,3.2078]
[1741475604250,0.59700411,2207.9,2207.4,3.8157]
[1741475604545,0.6293,2207.8,2207.4,3.8157]
[1741475607234,0.6293,2207.8,2207.4,3.2078]
[1741475607443,1.967,2207.7,2207.4,3.2078]
[1741475607744,0.6478,2207.6,2207.4,3.2078]
[1741475607942,1.2488,2207.6,2207.1,3.2078]
[1741475611947,4.4566,2207.6,2207.1,3.2078]
[1741475617855,3.2078,2207.2,2207.0,0.6273]
[1741475618055,1.2392,2207.1,2207.0,0.6273]
[1741475618455,1.2392,2207.1,2206.7,0.36916079]
[1741475618759,1.2392,2207.1,2206.8,0.5966]
[1741475621950,1.2392,2207.1,2206.7,0.37113547]
[1741475622152,1.2392,2207.1,2206.6,0.6175]
[1741475622351,1.2392,2207.1,2206.6,0.99454134]
[1741475624553,3.2078,2207.0,2206.6,0.99454134]
[1741475629852,1.967,2206.9,2206.6,0.99454134]
[1741475633557,3.2078,2207.0,2206.6,0.99454134]
[1741475637068,3.2078,2207.0,2206.6,1.53844134]
[1741475637258,3.2078,2207.0,2206.6,0.99454134]
[1741475638066,3.2078,2207.0,2206.6,1.53846134]
[1741475638962,1.967,2207.1,2206.6,1.53846134]
[1741475639559,1.967,2207.1,2206.6,0.99454134]
[1741475639764,1.967,2207.1,2206.6,1.53845134]
[1741475642669,3.8065,2207.3,2206.7,0.54389]
[1741475642864,1.967,2207.2,2206.8,1.2425]
[1741475643271,1.967,2207.2,2206.9,0.624]
[1741475646765,3.8065,2207.3,2206.9,1.16783]
[1741475647071,3.8065,2207.3,2206.9,0.624]
[1741475647270,3.8065,2207.3,2206.9,1.16782]
[1741475650473,3.8065,2207.3,2206.9,0.624]
[1741475650674,3.8065,2207.3,2207.0,0.54382]
[1741475651175,2.1922686,2207.3,2206.9,0.624]
[1741475651378,18.506,2207.5,2207.2,0.54377]
[1741475651677,1.967,2207.6,2207.3,1.8863]
[1741475651871,3.1795,2207.8,2207.3,1.8863]
[1741475652177,3.1795,2207.8,2207.4,3.2078]
[1741475652569,2.5647,2207.8,2207.4,3.75151]
[1741475652966,2.5647,2207.8,2207.4,3.2078]
[1741475653172,2.5647,2207.8,2207.5,0.54368]
[1741475653478,0.00680411,2207.9,2207.7,3.2078]
[1741475653780,0.00680411,2207.9,2207.8,0.6284]
[1741475656580,1.966,2208.3,2207.8,0.6284]
[1741475656785,1.10458594,2208.3,2208.0,3.2078]
[1741475656985,1.10458594,2208.3,2208.1,0.6159]
[1741475657180,18.503,2208.4,2208.2,0.6099]
[1741475657390,19.0994,2208.4,2208.2,0.6099]
[1741475657984,19.0994,2208.4,2208.2,0.98801029]
[1741475658576,19.0994,2208.4,2208.2,1.57641029]
[1741475658985,0.5964,2208.4,2208.2,1.57641029]
[1741475659478,3.2078,2208.8,2208.2,1.57641029]
[1741475659886,3.2078,2208.8,2208.3,0.54348]
[1741475660080,3.2078,2208.8,2208.4,0.54347]
[1741475660475,1.8444,2209.0,2208.5,0.5884]
[1741475660675,0.00680411,2208.8,2208.5,0.5884]
[1741475661077,0.00680411,2208.8,2208.6,0.648]
[1741475665974,0.00680411,2208.8,2208.4,3.2078]
[1741475666179,3.21460411,2208.8,2208.4,3.2078]
[1741475666387,3.21460411,2208.8,2208.2,1.00701029]
[1741475666587,0.5993,2208.7,2208.2,1.00701029]
[1741475666782,0.6266,2208.6,2208.2,1.00701029]
[1741475666983,0.6266,2208.6,2208.2,0.6289]
[1741475666984,1.2508,2208.6,2208.2,0.6289]
[1741475667183,3.2158,2208.6,2208.2,0.6289]
[1741475668092,3.2158,2208.6,2208.1,3.2078]
[1741475668486,3.2078,2208.5,2208.1,3.2078]
[1741475668684,3.2983592,2208.5,2208.1,3.2078]
[1741475668985,0.0905633,2208.4,2208.1,3.2078]
[1741475669487,0.6131,2208.3,2208.1,3.2078]
[1741475669692,1.965,2208.2,2208.1,3.2078]
[1741475675399,5.1728,2208.2,2207.7,0.5979]
[1741475675601,1.2279,2208.1,2207.7,0.5979]
[1741475677700,3.2078,2208.2,2207.7,0.9763113]
[1741475677901,1.965,2208.2,2207.7,0.9763113]
[1741475678602,0.6131,2208.3,2207.7,0.9763113]
[1741475680202,0.6131,2208.3,2207.8,0.5888]
[1741475680605,0.6131,2208.3,2207.9,0.5948]
[1741475682207,3.2983633,2208.4,2207.9,0.5948]
[1741475682406,3.9343633,2208.4,2207.9,0.5948]
[1741475689215,3.2078,2208.1,2207.7,4.1841113]
[1741475689418,0.5944,2208.0,2207.7,4.8023113]
[1741475689616,3.2078,2208.1,2207.7,4.8023113]
[1741475690117,0.5944,2208.0,2207.7,4.8023113]
[1741475690513,3.2078,2208.1,2207.7,4.8023113]
[1741475691318,5.1728,2208.1,2207.7,4.8023113]
[1741475694216,1.965,2208.1,2207.7,4.8023113]
[1741475694919,1.965,2208.3,2207.7,4.8023113]
[1741475698417,1.965,2208.3,2207.7,1.5945113]
[1741475699920,0.6269,2208.2,2207.7,1.5945113]
[1741475700121,1.2564,2208.2,2207.7,1.5945113]
[1741475700727,0.6018,2208.1,2207.7,1.5945113]
[1741475702128,3.8096,2208.1,2207.7,1.5945113]
[1741475705524,3.8096,2208.1,2207.7,0.63519445]
[1741475709633,3.2078,2207.8,2207.6,0.00680411]
[1741475709824,1.8719,2207.7,2207.6,0.00680411]
[1741475712730,5.1728,2207.8,2207.6,0.00680411]
[1741475712931,5.1728,2207.8,2207.6,0.64770411]
[1741475713335,5.1728,2207.8,2207.6,0.00680411]
[1741475713531,0.6072,2207.7,2207.6,0.00680411]
[1741475717323,3.2078,2207.8,2207.6,0.00680411]
[1741475717524,1.965,2208.0,2207.6,0.00680411]
[1741475719635,3.9058756,2208.1,2207.6,0.00680411]
[1741475719840,3.2983756,2208.1,2207.6,0.00680411]
[1741475721431,3.2983756,2208.1,2207.6,0.55046411]
[1741475721736,3.2983756,2208.1,2207.7,1.2432]